{"text_format":"1","workbook":"xlsx","n_sheets":2,"sheets":["Formularz","Wyniki"],"not_rendered":{"charts":0,"images":17,"macros":1,"external_links":0,"defined_names":30,"comments":2,"pivot_tables":0},"unopened":[],"bounds":{"document_bytes":16777216,"sheet_cells":100000,"rows_first":2000,"rows_last":500,"rows_between":2000,"halvings":0,"cell_chars":16384,"cell_head_chars":4096},"cells_cut":0,"cells_raw":0,"read":"whole","date_system":"1900"}

{"sheet":"Formularz","index":0,"n_rows":35,"n_cols":5,"rows_kept":35,"cut":false,"hidden":false,"merged":[[1,1,1,4],[2,2,2,3],[9,2,9,3]]}
[]
[null,"Kalkulator opracowany dla Jednostek Samorządów Terytorialnych, pozwalający oszacować poglądowe koszty Programu Polityki Zdrowotnej"]
[]
[null,null,"Nazwa jednostki samorządowej","Kraków",{"$f":"IF(D4=\"\",0,1)","v":1}]
[]
[null,null,"Liczba osób zaplanowana do zaszczepienia",200,{"$f":"IF(D6=\"\",0,1)","v":1}]
[]
[null,null,"Interwencja","Półpasiec dorośli, 2 dawki"]
[]
[null,null,"Koszty jednostkowe związane z wykonaniem szczepienia:"]
[]
[null,null,"Koszt zakupu szczepionki","Uśredniona cena rynkowa"]
[]
[null,null,null,751.06,{"$f":"IF(D14=\"\",0,1)","v":1}]
[]
[null,null,"Koszt kwalifikacji do szczepienia","Zarządzenie NFZ"]
[]
[null,null,null,0,{"$f":"IF(D18=\"\",0,1)","v":1}]
[]
[null,null,"Koszt jednostkowy podania szczepionki","Zarządzenie NFZ"]
[]
[null,null,null,31.67,{"$f":"IF(D22=\"\",0,1)","v":1}]
[]
[]
[null,null,"Koszty administracyjne",0.02]
[]
[null,null,null,null,{"$f":"IF(D27=\"\",0,1)","v":0}]
[]
[null,null,"Koszty promocji/edukacji",0.05]
[]
[null,null,null,null,{"$f":"IF(D31=\"\",0,1)","v":0}]
[]
[null,null,"Koszty monitorowania i ewaluacji programu",0.05]
[]
[null,null,null,null,{"$f":"IF(D35=\"\",0,1)","v":0}]

{"sheet":"Wyniki","index":1,"n_rows":88,"n_cols":18,"rows_kept":88,"cut":false,"hidden":false,"merged":[[72,1,72,2],[73,1,73,2],[75,1,75,2],[1,1,1,4],[67,1,67,2],[74,1,74,2],[68,6,71,6],[68,3,70,3],[68,5,70,5],[68,1,68,2],[69,1,69,2],[70,1,70,2],[71,1,71,2]]}
[]
[null,{"$f":"\"Kosztorys szczepień przeciw \"&VLOOKUP(MATCH(Formularz!D8,Wyniki!B43:B50,0),Wyniki!F43:G50,2,FALSE)&\" dla jednostki samorządowej \"&nazwa_js","v":"Kosztorys szczepień przeciw półpaścowi dla jednostki samorządowej Kraków"}]
[]
[null,null,"ROK","Roczne koszty"]
[]
[null,null,"Liczba uczestników",{"$f":"populacja","v":200}]
[null,null,"Koszty szczepień",{"$f":"D6*D14","v":313091.99999999994}]
[null,null,"Koszty administracyjne",{"$f":"C47*(D7/(1-SUM($C$47:$E$47)))","v":7115.7272727272721}]
[null,null,"Koszty promocji/edukacji",{"$f":"D47*(D7/(1-SUM($C$47:$E$47)))","v":17789.31818181818}]
[null,null,"Koszty monitorowania i ewaluacji",{"$f":"E47*(D7/(1-SUM($C$47:$E$47)))","v":17789.31818181818}]
[null,null,"Całkowity koszt",{"$f":"SUM(D7:D10)","v":355786.36363636359}]
[]
[null,null,"Średni koszt 1. uczestnika"]
[null,null,"Koszty szczepienia na 1. uczestnika",{"$f":"VLOOKUP(Formularz!D8,Wyniki!$B$57:$P$64,Wyniki!M55,FALSE)","v":1565.4599999999998}]
[null,null,"Koszty administracyjne na 1. uczestnika",{"$f":"D8/$D$6","v":35.578636363636363}]
[null,null,"Koszty promocji/edukacji na 1. uczestnika",{"$f":"D9/$D$6","v":88.946590909090901}]
[null,null,"Koszty monitorowania i ewaluacji na 1. uczestnika",88.946590909090901]
[null,null,"Średni koszt 1. uczestnika",{"$f":"SUM(D14,D15,D16,D17)","v":1778.931818181818}]
[]
[]
[]
[]
[]
[]
[]
[]
[]
[]
[]
[]
[]
[]
[]
[]
[]
[]
[]
[]
[]
[]
[]
[null,"Rodzaj interwencji","Koszty administracyjne w danym roku","Koszty promocji/edukacji","Koszty monitorowania i ewaluacji programu","L.p.","Odmiana rodzaju interwencji","Koszt podania","Koszt kwalifikacji","Zakup szczepionki","Wybór podanie","Wybór kwalifikacja"]
[null,{"$f":"Wyniki!B57","v":"Pneumokoki dorośli, 1 dawka"},0.02,0.05,0.02,1,"pneumokokom","Zarządzenie NFZ","Zarządzenie NFZ","Uśredniona cena rynkowa",31.67,0]
[null,{"$f":"Wyniki!B58","v":"Kleszczowe zapalenia mózgu dorośli, 3 dawki"},0.05,0.1,0.05,2,"kleszczowemu zapaleniu mózgu","Średnia wartość kosztu podania - przykładowe raporty końcowe","Średnia wartość kosztu kwalifikacji - przykładowe raporty końcowe","Wartość użytkownika",{"$f":"E80","v":15},{"$f":"E81","v":84.25}]
[null,{"$f":"Wyniki!B59","v":"Meningokoki ACWY dorośli, 1 dawka"},0.1,0.15,0.1,3,"meningokokom ACWY","Maksymalna wartość kosztu podania - przykładowe raporty końcowe","Maksymalna wartość kosztu kwalifikacji - przykładowe raporty końcowe",null,{"$f":"D80","v":20},{"$f":"D81","v":100}]
[null,{"$f":"Wyniki!B60","v":"Meningokoki B dorośli, 2 dawki"},"Wartość użytkownika","Wartość użytkownika","Wartość użytkownika",4,"meningokokom B","Wartość użytkownika","Wartość użytkownika"]
[null,{"$f":"Wyniki!B61","v":"Grypa dorośli, 1 dawka"},{"$f":"IF(k_admin=Wyniki!$C$46,k_admin_val,k_admin)","v":0.02},{"$f":"IF(k_prom=Wyniki!$D$46,k_prom_val,k_prom)","v":0.05},{"$f":"IF(k_monit=Wyniki!$E$46,k_monit_val,k_monit)","v":0.05},5,"grypie",{"$f":"MATCH(k_podania_ust,H43:H46,)","v":1},{"$f":"MATCH(k_kwalif_ust,I43:I46,)","v":1},{"$f":"MATCH(k_jedn,J43:J44,)","v":1}]
[null,{"$f":"Wyniki!B62","v":"HPV dorośli, 3 dawki"},null,null,null,6,"wirusowi HPV",null,null,null,{"$f":"CHOOSE(H47,K43,K44,K45)","v":31.67},{"$f":"CHOOSE(I47,L43,L44,L45)","v":0}]
[null,{"$f":"Wyniki!B63","v":"Półpasiec dorośli, 2 dawki"},null,null,null,7,"półpaścowi"]
[null,"RSV (syncytialny wirus oddechowy) dorośli, 1 dawka",null,null,null,8,"wirusowi RSV"]
[null,{"$f":"CHOOSE(MATCH(Formularz!D8,Wyniki!B43:B50,0),Wyniki!E57,Wyniki!E58,Wyniki!E59,Wyniki!E60,Wyniki!E61,Wyniki!E62,Wyniki!E63,E64)","v":751.06}]
[]
[]
[]
["Obliczenia",1,"2",3,4,5,6,7,8,9,10,11,12]
[null,"Rodzaj interwencji","Refundacja","Schemat szczepienia","Koszt za dawkę","Cena detaliczna GSK","Cena detaliczna inne firmy","Cena detaliczna refundacja","Dopłata pacjenta","Koszt podania szczepionki","Koszt pełnego szczepienia","Koszt kwalifikacji","Koszt szczepienia (szczepionka + podanie + kwalfikacja)","Źródło: Cena detaliczna inne firmy","Uwagi","Liczba dawek"]
[null,"Pneumokoki dorośli, 1 dawka","50% odpłatności po 65 r.ż. ze zwiększonym (umiarkowanym do wysokiego) ryzykiem choroby pneumokokowi","1 dawki szczepionki skoniugowanej PCV13 (Prevenar13) oraz 1 dawki szczepionki polisacharydowej PPSV23 (Pneumovax23)",{"$f":"IF(AND(k_jedn=Wyniki!$J$44,Interwencja=Wyniki!B57),k_szczep,AVERAGE(H57,G57))","v":225.80500000000001},null,{"$f":"AVERAGE(142.99,199.99)","v":171.49},{"$f":"M85","v":280.12},{"$f":"R85","v":140.06},{"$f":"CHOOSE($H$47,$K$43,$K$44,$K$45,Formularz!$D$22)*P57","v":31.67},{"$f":"E57*P57","v":225.80500000000001},{"$f":"CHOOSE($I$47,$L$43,$L$44,$L$45,Formularz!$D$18)*P57","v":0},{"$f":"IF($H$47=$H$46,(k_szczep+k_jedn_val+k_kwalif)*P57,SUM(J57,K57,L57))","v":257.47500000000002},"https://www.gdziepolek.pl/produkty/62574/pneumovax-23-iniekcja/apteki",null,1]
[null,"Kleszczowe zapalenia mózgu dorośli, 3 dawki","brak"," 3 dawki szczepienia pierwotnego + dawki przypominające co 3-5 lat",{"$f":"IF(AND(k_jedn=Wyniki!$J$44,Interwencja=Wyniki!B58),k_szczep,G58)","v":162.60499999999999},null,{"$f":"AVERAGE(84.99,240.22)","v":162.60499999999999},null,null,{"$f":"CHOOSE($H$47,$K$43,$K$44,$K$45,Formularz!$D$22)*P58","v":95.01},{"$f":"E58*P58","v":487.81499999999994},{"$f":"CHOOSE($I$47,$L$43,$L$44,$L$45,Formularz!$D$18)*P58","v":0},{"$f":"IF($H$47=$H$46,(k_szczep+k_jedn_val+k_kwalif)*P58,SUM(J58,K58,L58))","v":582.82499999999993},"https://www.gdziepolek.pl/produkty/31580/fsme-immun-0-5-ml-iniekcja/apteki",null,3]
[null,"Meningokoki ACWY dorośli, 1 dawka","brak","Szczepionka  Nimenrix: 1 dawka",{"$f":"IF(AND(k_jedn=Wyniki!$J$44,Interwencja=Wyniki!B59),k_szczep,G59)","v":259.99},null,{"$f":"AVERAGE(169.99,349.99)","v":259.99},null,null,{"$f":"CHOOSE($H$47,$K$43,$K$44,$K$45,Formularz!$D$22)*P59","v":31.67},259.99,{"$f":"CHOOSE($I$47,$L$43,$L$44,$L$45,Formularz!$D$18)*P59","v":0},291.66000000000003,"https://www.gdziepolek.pl/produkty/53353/nimenrix-iniekcja/apteki",null,1]
[null,"Meningokoki B dorośli, 2 dawki","brak","Szczepionka Bexsero (GSK): 2 dawki w odstępie co najmniej 1 mies.",{"$f":"IF(AND(k_jedn=Wyniki!$J$44,Interwencja=Wyniki!B60),k_szczep,F60)","v":579.11500000000001},{"$f":"AVERAGE(324.98,833.25)","v":579.11500000000001},null,null,null,{"$f":"CHOOSE($H$47,$K$43,$K$44,$K$45,Formularz!$D$22)*P60","v":63.34},1158.23,{"$f":"CHOOSE($I$47,$L$43,$L$44,$L$45,Formularz!$D$18)*P60","v":0},1221.57,null,null,2]
[null,"Grypa dorośli, 1 dawka","50% odpłatności, po 75 r.ż. za darmo","1 dawka szczepionki Fluarix Tetra (GSK) na sezon",{"$f":"IF(AND(k_jedn=Wyniki!$J$44,Interwencja=Wyniki!B61),k_szczep,AVERAGE(H61,F61))","v":65.367500000000007},77.760000000000005,null,{"$f":"AVERAGE(M84,M88)","v":52.975000000000001},{"$f":"AVERAGE(R84,R88)","v":26.490000000000002},{"$f":"CHOOSE($H$47,$K$43,$K$44,$K$45,Formularz!$D$22)*P61","v":31.67},{"$f":"E61*P61","v":65.367500000000007},{"$f":"CHOOSE($I$47,$L$43,$L$44,$L$45,Formularz!$D$18)*P61","v":0},97.037500000000009,null,"Szczepionka GSK nie jest już refundowana",1]
[null,"HPV dorośli, 3 dawki","50% odpłatności"," Cervarix (GSK): Osoby ≥15 lat. 3 dawki po 0,5 ml, zgodnie ze schematem 0, 1, 6 mies.",{"$f":"IF(AND(k_jedn=Wyniki!$J$44,Interwencja=Wyniki!B62),k_szczep,AVERAGE(H62,F62))","v":278.77999999999997},{"$f":"H62","v":278.77999999999997},null,{"$f":"N87","v":278.77999999999997},{"$f":"R87","v":139.38999999999999},{"$f":"CHOOSE($H$47,$K$43,$K$44,$K$45,Formularz!$D$22)*P62","v":95.01},{"$f":"E62*P62","v":836.33999999999992},{"$f":"CHOOSE($I$47,$L$43,$L$44,$L$45,Formularz!$D$18)*P62","v":0},{"$f":"IF($H$47=$H$46,(k_szczep+k_jedn_val+k_kwalif)*P62,SUM(J62,K62,L62))","v":931.34999999999991},null,null,3]
[null,"Półpasiec dorośli, 2 dawki","50% odpłatności po 65 r.ż. o zwiększonym ryzyku zachorowania na półpasiec","Shingrix (GSK): 2 dawki, druga dawka podana po 2 mies.",{"$f":"IF(AND(k_jedn=Wyniki!$J$44,Interwencja=Wyniki!B63),k_szczep,AVERAGE(H63,F63))","v":751.06},{"$f":"H63","v":751.06},null,{"$f":"N86","v":751.06},{"$f":"R86","v":375.53},{"$f":"CHOOSE($H$47,$K$43,$K$44,$K$45,Formularz!$D$22)*P63","v":63.34},{"$f":"E63*P63","v":1502.12},{"$f":"CHOOSE($I$47,$L$43,$L$44,$L$45,Formularz!$D$18)*P63","v":0},1565.4599999999998,null,null,2]
[null,"RSV (syncytialny wirus oddechowy) dorośli, 1 dawka",null,"Arexvy 1 dawka",{"$f":"IF(AND(k_jedn=Wyniki!$J$44,Interwencja=Wyniki!B64),k_szczep,AVERAGE(H64,F64))","v":1099},1099,null,null,null,{"$f":"CHOOSE($H$47,$K$43,$K$44,$K$45,Formularz!$D$22)*P64","v":31.67},{"$f":"E64*P64","v":1099},{"$f":"CHOOSE($I$47,$L$43,$L$44,$L$45,Formularz!$D$18)*P64","v":0},{"$f":"IF($H$47=$H$46,(k_szczep+k_jedn_val+k_kwalif)*P64,SUM(J64,K64,L64))","v":1130.67},null,null,1]
[]
[null,"Przykładowe projekty końcowe PPZ"]
[null,"Wskazanie",null,"Grypa","Grypa","HPV","HPV","HPV","Meningokoki"]
[null,"Okres realizacji",null,"16.04.2018 - 30.11.2020","03.2021 - 12.20221","28.04.2021 - 31.12.2021","6.12.2016 - 31.12.2018","2022 - 2023","09.2020 - 11.2022"]
[null,"Koszt zakupu 1 szczepionki",null,{"$f":"(40*21+35)/22","v":39.772727272727273},40.19,215,224.34,500]
[null,"Kwalifikacji do szczepienia",null,null,20,null,null,null,68.5]
[null,"Kwalifikacja do podania szczepionki",null,null,20]
[null,"Działania edukacyjne",null,null,18,null,null,195]
[null,"Kwalifikacji do programu",null,null,null,null,null,100,26]
[null,"Wykonanie szczepienia wraz z jedną dawką",null,null,null,null,null,null,355.1]
[null,"Konsultacja lekarska",null,null,null,null,null,100]
[null,"Praca personelu pielęgniarskiego",null,null,null,null,null,10]
[null,null,null,null,{"$f":"E70+E71","v":40},null,null,{"$f":"H75+H76","v":110},{"$f":"I70+I73","v":94.5}]
[null,"Projekty końcowe PPZ - podsumowanie"]
[null,null,null,"max","średnia"]
[null,"Koszt podania szczepionki",null,{"$f":"E71","v":20},{"$f":"AVERAGE(E71,H76)","v":15}]
[null,"Koszt kwalifikacji do szczepienia",null,{"$f":"H75","v":100},{"$f":"AVERAGE(H75,I70)","v":84.25}]
[null,"Refundacja"]
[null,"LP","Substancja czynna","Nazwa  postać i dawka","Zawartość opakowania","Numer GTIN lub inny kod jednoznacznie identyfikujący produkt","Termin wejścia w życie decyzji","Okres obowiązywania decyzji","Grupa limitowa","Cena zbytu netto","Urzędowa cena zbytu","Cena hurtowa brutto","Cena detaliczna","Wysokość limitu finansowania","Zakres wskazań objętych refundacją","Zakres wskazań pozarejestracyjnych objętych refundacją","Poziom odpłatności","Wysokość dopłaty świadczeniobiorcy"]
[null,"959","Czterowalentna szczepionka przeciw grypie (rozszczepiony wirion), inaktywowana","VaxigripTetra, zawiesina do wstrzykiwań w ampułko-strzykawce, 1 dawka","1 amp.-strzyk. 0,5 ml z igłą","05909991302108","2023-11-01","2 lata","247.0, Szczepionki przeciw grypie","38,00","41,04","43,50",53.2,53.2,"We wszystkich zarejestrowanych wskazaniach na dzień wydania decyzji;",null,"50%",26.6]
[null,"3542","Szczepionka przeciw pneumokokom sacharydowa, skoniugowana, adsorbowana (13-walentna)","Prevenar 13, zawiesina do wstrzykiwań, 0.5 ml","1 amp.-strzyk. + 1 igła","05909990737420","2024-01-01","2 lata","255.0, Szczepionki przeciw pneumokokom","227,13","245,30","260,02",280.12,280.12,"Profilaktyka osób powyżej 65 r.ż. ze zwiększonym (umiarkowanym do wysokiego) ryzykiem choroby pneumokokowej tj. z: przewlekłą chorobą serca, przewlekłą chorobą wątroby, przewlekłą chorobą płuc, cukrzycą, implantem ślimakowym, wyciekiem płynu mózgowo-rdzeniowego, wrodzoną lub nabytą asplenią, niedokrwistością sierpowatą i innymi hemoglobinopatiami, przewlekłą niewydolnością nerek, wrodzonym lub nabytym niedoborem odporności, uogólnioną choroba nowotworową, zakażeniem wirusem HIV, chorobą Hodgkina, jatrogenną immunosupresją, białaczką, szpiczakiem mnogim, przeszczepem narządu litego",null,"50%",140.06]
[null,"3543","Szczepionka przeciw półpaścowi (rekombinowana, z adiuwantem)","Shingrix, proszek i zawiesina do sporządzania zawiesiny do wstrzykiwań, 50 µg","1 fiol. proszku + 1 fiol. 0,5 ml zawiesiny","05909991364885","2024-01-01","2 lata","269.0, Szczepionki przeciw półpaścowi","628,00","678,24","718,93",751.06,751.06,"Profilaktyka półpaśca i neuralgii półpaścowej u pacjentów w wieku 65 lat i starszych o zwiększonym ryzyku zachorowania na półpasiec tj. z: przewlekłą chorobą serca, przewlekłą chorobą płuc, cukrzycą, przewlekłą niewydolnością nerek, wrodzonym lub nabytym niedoborem odporności, uogólnioną chorobą nowotworową, zakażeniem wirusem HIV, chorobą Hodgkina, jatrogenną immunosupresją, białaczką, szpiczakiem mnogim, przeszczepem narządu litego, reumatoidalnym zapaleniem stawów, łuszczycą, łuszczycowym zapaleniem stawów, nieswoistym zapaleniem jelit, zesztywniającym zapaleniem stawów kręgosłupa, stwardnieniem rozsianym, toczniem układowym.",null,"50%",375.53]
[null,"3544","Szczepionka przeciw wirusowi brodawczaka ludzkiego [typy 16 i 18] (rekombinowana, z adiuwantem, adsorbowana)","Cervarix, zawiesina do wstrzykiwań, 20+20 µg","1 amp.-strz.","05909990064748","2023-11-01","2 lata","254.0, Szczepionki przeciwko wirusowi brodawczaka ludzkiego (HPV)","226,00","244,08","258,72",278.77999999999997,278.77999999999997,"We wszystkich zarejestrowanych wskazaniach na dzień wydania decyzji",null,"50%",139.38999999999999]
[null,"3979","Vaccinum influenzae inactivatum ex corticis antigeniis praeparatum (szczepionka przeciw grypie (antygen powierzchniowy), inaktywowana)","Influvac Tetra, zawiesina do wstrzykiwań w ampułko-strzykawce","1 amp.-strzyk. 0,5 ml z igłą","05909991347352","2023-07-01","2 lata","247.0, Szczepionki przeciw grypie","37,60","40,61","43,05",52.75,52.75,"We wszystkich zarejestrowanych wskazaniach na dzień wydania decyzji",null,"50%",26.38]